bitfinex/quotes_ETHUSD_20260102
["timestamp","ask_amount","ask_price","bid_price","bid_amount"]
[1767314987087,2.47427778,3004.4,3004.0,2.38727708]
[1767314992097,2.47427778,3004.4,3003.9,0.001]
[1767314994623,2.47627778,3004.4,3003.9,0.001]
[1767314995798,2.47627778,3004.4,3003.9,2.3822669]
[1767314997300,2.32176118,3004.3,3003.9,2.3822669]
[1767315002831,2.32176118,3004.3,3003.9,0.001]
[1767315010443,2.32376118,3004.3,3003.9,0.001]
[1767315013406,2.32376118,3004.3,3003.9,2.3822669]
[1767315022757,2.32376118,3004.3,3003.5,2.3822669]
[1767315022930,2.32176118,3004.1,3003.5,2.3822669]
[1767315026844,2.32376118,3004.1,3003.5,2.3822669]
[1767315027147,0.002,3004.1,3003.5,2.3822669]
[1767315028530,2.40428647,3004.1,3003.5,2.3822669]
[1767315041862,0.002,3004.3,3003.6,2.29689397]
[1767315042066,2.40428647,3004.3,3003.6,2.29689397]
[1767315042268,2.64491512,3004.3,3003.6,2.29689397]
[1767315042743,2.40228647,3004.2,3003.6,2.29689397]
[1767315043162,0.002,3004.1,3003.6,2.29689397]
[1767315043363,2.40228647,3004.0,3003.6,2.29689397]
[1767315043768,2.40228647,3004.0,3003.5,0.001]
[1767315044065,2.40228647,3003.8,3003.2,2.29789397]
[1767315045181,2.40228647,3003.8,3003.2,0.001]
[1767315046572,2.40228647,3003.7,3003.2,0.001]
[1767315049888,2.40228647,3003.7,3003.2,2.29789397]
[1767315057780,2.39409771,3003.6,3003.2,0.001]
[1767315057980,2.96643094,3003.6,3003.1,0.001]
[1767315058184,2.96643094,3003.6,3002.8,0.001]
[1767315058383,2.39409771,3003.5,3002.8,0.001]
[1767315059281,2.39409771,3003.5,3003.1,0.001]
[1767315059588,2.39409771,3003.3,3003.1,0.001]
[1767315065698,0.29664309,3003.4,3003.1,0.001]
[1767315065699,3.26809771,3003.7,3003.2,2.41944459]
[1767315065996,2.39409771,3003.7,3003.2,2.41944459]
[1767315066566,2.39409771,3004.0,3003.2,2.66148905]
[1767315066766,0.002,3004.1,3003.2,2.66148905]
[1767315066971,0.002,3004.1,3003.4,2.41944459]
[1767315067175,0.002,3004.3,3003.7,2.41944459]
[1767315067368,0.002,3004.8,3003.8,2.41944459]
[1767315067369,3.33003615,3004.8,3003.8,2.41944459]
[1767315067596,2.39409771,3004.7,3003.8,0.874]
[1767315067778,2.39409771,3004.7,3003.9,2.41944459]
[1767315068202,0.002,3004.8,3003.9,2.41944459]
[1767315069408,0.002,3004.8,3004.0,2.41944459]
[1767315069577,0.002,3004.8,3004.1,2.41944459]
[1767315070698,0.002,3005.0,3004.3,2.41944459]
[1767315071068,2.39609771,3005.0,3004.3,2.41944459]
[1767315071504,3.32981239,3005.0,3004.3,2.41944459]
[1767315071801,2.39409771,3004.9,3004.3,2.41944459]
[1767315072006,2.39409771,3004.7,3003.8,0.874]
[1767315072304,2.39409771,3004.7,3003.9,2.41944459]
[1767315074501,2.39409771,3004.7,3004.0,2.41944459]
[1767315074802,2.39409771,3004.9,3004.0,2.41944459]
[1767315076308,2.39609771,3004.9,3004.0,2.41944459]
[1767315076505,2.39609771,3004.9,3004.2,2.41944459]
[1767315080926,2.39609771,3004.9,3004.3,2.41944459]
[1767315082709,2.39609771,3004.9,3004.4,2.41944459]
[1767315086623,2.49152038,3004.8,3004.4,2.41944459]
[1767315087187,2.49152038,3004.8,3003.9,0.001]
[1767315087498,2.49152038,3004.7,3004.0,2.41969934]
[1767315087696,2.49152038,3004.7,3004.0,6.29310847]
[1767315088018,2.49152038,3004.7,3004.1,2.41969934]
[1767315094706,2.49152038,3004.7,3004.3,2.41969934]
[1767315096321,3.32936182,3005.4,3004.7,2.41969934]
[1767315096537,0.33513618,3005.2,3004.8,3.87340913]
[1767315096722,0.002,3005.2,3004.9,2.41969934]
[1767315098436,0.002,3005.4,3005.1,2.41969934]
[1767315098809,2.49352038,3005.4,3005.1,2.41969934]
[1767315099013,3.71178713,3005.4,3005.1,2.41969934]
[1767315099928,0.002,3005.2,3005.1,2.41969934]
[1767315101539,0.002,3005.2,3004.9,2.41969934]
[1767315103133,0.002,3005.4,3004.9,2.41969934]
[1767315103529,0.002,3005.4,3005.1,2.41969934]
[1767315104440,0.002,3005.7,3005.2,3.87340913]
[1767315104607,2.49152038,3005.8,3005.3,2.41969934]
[1767315106440,0.002,3005.9,3005.3,2.41969934]
[1767315106639,0.002,3005.9,3005.5,2.41969934]
[1767315107144,2.49352038,3005.9,3005.1,0.62931085]
[1767315107341,2.49152038,3005.8,3005.2,2.41969934]
[1767315108043,2.49352038,3005.8,3005.2,2.41969934]
[1767315115125,0.002,3005.8,3005.2,2.41969934]
[1767315116346,0.002,3005.8,3005.2,3.87340913]
[1767315116550,0.002,3005.8,3005.3,2.28958068]
[1767315116852,0.002,3005.8,3005.3,2.25630614]
[1767315117235,0.002,3005.9,3005.2,2.28958179]
[1767315118624,2.31431656,3005.8,3005.2,0.03327565]
[1767315118827,2.31431656,3005.7,3005.1,2.25730614]
[1767315120856,2.31631656,3005.9,3005.2,2.28958179]
[1767315121524,0.002,3005.9,3005.2,2.28958179]
[1767315121729,0.002,3006.0,3005.4,2.25630614]
[1767315122149,2.31631656,3006.0,3005.4,2.25630614]
[1767315124147,0.002,3005.8,3005.4,2.25630614]
[1767315128462,0.002,3006.1,3005.8,6.12971527]
[1767315128762,0.002,3006.1,3005.8,2.25630614]
[1767315131264,2.31631656,3006.2,3005.7,2.25630614]
[1767315131265,0.002,3006.2,3005.7,2.25630614]
[1767315131455,0.002,3006.2,3005.8,2.25630614]
[1767315131965,2.31431656,3006.4,3005.9,2.25630614]
[1767315132137,0.002,3006.5,3006.1,2.25630614]
[1767315132338,2.31631656,3006.5,3006.1,2.25630614]
[1767315133935,2.31431656,3006.9,3006.0,3.87340913]
[1767315134143,2.31431656,3006.9,3006.1,2.25630614]
[1767315134971,3.87340913,3006.9,3006.1,2.25630614]
[1767315135139,2.31431656,3006.8,3006.1,2.25630614]
[1767315135470,2.31431656,3006.8,3006.2,0.874]
[1767315135685,2.31431656,3006.8,3006.2,3.13030614]
[1767315136282,2.87832131,3006.8,3006.2,3.13030614]
[1767315136456,2.31431656,3006.8,3006.2,3.13030614]
[1767315137147,2.31431656,3006.7,3005.6,2.25630614]
[1767315137348,2.31431656,3006.7,3005.8,2.25630614]
[1767315139064,2.31431656,3006.4,3005.8,2.25630614]
[1767315139476,2.31431656,3006.4,3005.9,0.874]
[1767315139682,2.31431656,3006.4,3006.0,2.25630614]
[1767315141492,4.10484079,3006.4,3005.9,0.874]
[1767315141666,4.10484079,3006.4,3006.0,2.25630614]
[1767315141667,0.23143166,3006.4,3006.0,2.25630614]
[1767315141859,2.31431656,3006.4,3006.0,2.25630614]
[1767315142985,2.31431656,3006.7,3006.0,2.25630614]
[1767315143557,2.29116195,3006.6,3005.9,0.874]
[1767315144660,2.29116195,3006.6,3005.8,2.34701279]
[1767315144895,2.37099165,3006.6,3005.5,2.34701279]
[1767315145078,2.29116195,3006.4,3005.5,2.34701279]
[1767315146270,2.29116195,3006.2,3005.5,2.34701279]
[1767315146978,2.29116195,3006.2,3005.8,0.001]
[1767315147660,2.29116195,3006.2,3005.8,2.34801279]
[1767315148293,2.85290276,3006.2,3005.8,2.34801279]
[1767315149497,2.85290276,3006.2,3005.5,2.34701279]
[1767315149692,2.29116195,3006.2,3005.5,2.34701279]
[1767315152404,2.29116195,3006.6,3005.7,2.34701279]
[1767315154798,0.002,3006.7,3005.8,2.34701279]
[1767315155398,2.29316195,3006.7,3005.8,2.34701279]
[1767315155599,2.29316195,3006.7,3006.0,2.34701279]
[1767315156676,0.002,3006.6,3006.0,2.34701279]
[1767315157073,0.002,3006.6,3006.1,2.34701279]
[1767315157467,0.002,3006.7,3006.1,2.34701279]
[1767315157796,0.002,3006.7,3006.3,2.34701279]
[1767315158696,2.29316195,3006.7,3006.3,2.34701279]
[1767315160166,2.29316195,3006.7,3006.0,2.34701279]
[1767315160670,3.32796625,3006.7,3006.0,2.34701279]
[1767315160870,2.29116195,3006.6,3006.0,2.34701279]
[1767315161096,2.29116195,3006.5,3006.0,2.34701279]
[1767315163079,2.29116195,3006.4,3005.7,2.34701279]
[1767315163310,2.29116195,3006.4,3005.4,2.34801279]
[1767315163311,2.29116195,3006.1,3005.4,2.34801279]
[1767315163494,2.29116195,3005.9,3005.4,2.34801279]
[1767315164593,2.29116195,3005.9,3005.2,2.34701279]
[1767315165612,2.29116195,3005.9,3005.6,0.001]
[1767315167582,2.29116195,3005.8,3005.1,2.34801279]
[1767315167921,2.29116195,3005.6,3005.1,2.34801279]
[1767315171232,2.29116195,3005.9,3005.1,2.34801279]
[1767315172936,2.29116195,3005.8,3005.1,0.001]
[1767315174130,5.61812315,3005.8,3005.1,0.001]
[1767315174335,2.97339218,3005.7,3005.1,0.001]
[1767315176136,2.41157987,3005.6,3005.1,0.001]
[1767315178510,2.41157987,3005.5,3005.1,0.001]
[1767315179335,2.41157987,3005.5,3005.1,2.47105026]
[1767315183920,2.41157987,3005.5,3005.1,0.001]
[1767315184664,2.41157987,3005.5,3005.1,2.47105026]
[1767315185559,2.41157987,3005.4,3005.1,0.001]
[1767315185756,2.41157987,3005.4,3005.0,0.001]
[1767315186074,2.41157987,3005.4,3005.0,2.47105026]
[1767315191667,2.41157987,3005.4,3005.0,0.001]
[1767315191869,2.41157987,3005.3,3005.0,2.47105026]
[1767315192043,3.04888752,3005.4,3005.0,2.47105026]
[1767315193445,2.41157987,3005.3,3005.0,0.001]
[1767315197671,3.86971547,3005.1,3004.5,0.001]
[1767315197971,2.41157987,3004.7,3004.1,2.47105026]
[1767315198222,2.41157987,3004.7,3004.1,0.001]
[1767315198473,2.41157987,3004.7,3004.0,2.47076065]
[1767315198985,2.41157987,3004.6,3004.0,2.47076065]
[1767315202577,2.41157987,3004.5,3004.0,0.00071039]
[1767315202775,2.41157987,3004.3,3004.0,0.00071039]
[1767315203368,2.41157987,3004.7,3004.0,2.47076065]
[1767315204468,3.87506118,3004.7,3004.0,2.47076065]
[1767315204660,2.31783896,3004.6,3004.0,2.47076065]
[1767315208779,3.32794285,3004.9,3004.1,0.03328783]
[1767315208978,2.31783896,3004.9,3004.0,2.50008393]
[1767315209881,2.31783896,3004.3,3004.0,0.00071039]
[1767315210178,2.31783896,3004.3,3004.0,2.50008393]
[1767315210479,2.31783896,3004.5,3004.0,2.50008393]
[1767315214192,0.002,3004.6,3004.0,2.50008393]
[1767315214866,2.31783896,3004.9,3004.2,2.49937354]
[1767315215996,3.87506118,3004.9,3004.2,2.49937354]
[1767315216192,2.31783896,3004.8,3004.2,2.49937354]
[1767315221099,2.31983896,3004.8,3004.2,2.49937354]
[1767315228179,2.31983896,3004.8,3004.3,2.49937354]
[1767315231677,2.31783896,3004.7,3004.3,2.49937354]
[1767315238414,2.31983896,3004.7,3004.3,2.49937354]
[1767315241913,0.002,3004.7,3004.3,2.49937354]
[1767315244023,2.31427176,3004.7,3004.3,2.49937354]
[1767315245820,2.31427176,3004.7,3004.1,2.40017121]
[1767315246919,2.31427176,3004.7,3004.3,0.001]
[1767315247116,2.31227176,3004.6,3004.3,0.001]
[1767315257818,2.31227176,3004.6,3004.3,2.40117121]
[1767315264012,2.4946232,3004.7,3004.3,2.40117121]
[1767315266334,0.002,3004.8,3004.4,2.37789968]
[1767315266536,2.4926232,3005.2,3004.5,2.37789968]
[1767315268640,2.4926232,3005.1,3004.5,2.37789968]
[1767315268812,2.5724529,3005.1,3004.5,2.37789968]
[1767315269341,2.4926232,3004.8,3004.5,2.37789968]
[1767315269840,2.4926232,3004.8,3004.3,2.37889968]
[1767315270142,2.4926232,3004.8,3004.3,2.61678965]
[1767315273728,2.4926232,3004.8,3004.3,0.001]
[1767315274613,2.4926232,3004.8,3004.3,2.37889968]
[1767315276351,2.4926232,3004.8,3004.3,0.001]
[1767315276543,2.4926232,3004.8,3004.1,2.37789968]
[1767315279251,2.4946232,3004.8,3004.1,2.37789968]
[1767315304172,2.4946232,3004.8,3004.1,2.41118751]
[1767315304783,4.28155523,3005.1,3004.2,2.42165942]
[1767315305091,2.488003,3005.0,3004.2,2.42165942]
[1767315308789,0.874,3005.1,3004.2,2.42165942]
[1767315309387,0.874,3005.1,3004.3,2.42165942]
[1767315309556,0.002,3005.2,3004.3,2.42165942]
[1767315309557,0.002,3005.2,3004.4,2.99669095]
[1767315309753,2.490003,3005.2,3004.4,2.99669095]
[1767315311492,0.002,3005.1,3004.4,2.99669095]
[1767315311959,2.490003,3005.1,3004.4,2.99669095]
[1767315313567,0.002,3005.1,3004.4,2.99669095]
[1767315313768,0.002,3005.1,3004.6,2.42165942]
[1767315314769,0.002,3005.2,3004.5,0.63252228]
[1767315314969,0.002,3005.2,3004.6,2.42165942]
[1767315318101,2.490003,3005.2,3004.6,2.42165942]
[1767315319497,0.002,3005.2,3004.6,2.42165942]
[1767315319806,0.002,3005.2,3004.6,2.72707759]
[1767315320402,2.490003,3005.2,3004.6,2.72707759]
[1767315321295,2.490003,3005.2,3004.6,2.42165942]
[1767315336011,0.002,3005.2,3004.6,2.32152702]
[1767315336206,2.42185005,3005.2,3004.6,2.32152702]
[1767315340922,2.42185005,3005.2,3004.5,0.001]
[1767315341130,2.42185005,3005.2,3004.6,2.32152702]
[1767315353230,3.39207245,3005.2,3004.6,2.27152702]
[1767315353413,2.41985005,3005.1,3004.6,2.27152702]
[1767315384261,2.42185005,3005.1,3004.6,2.27152702]
[1767315399078,2.42185005,3005.1,3004.5,0.001]
[1767315399781,2.42185005,3005.1,3004.5,2.40611122]
[1767315417670,0.002,3005.1,3004.5,2.40611122]
[1767315424796,0.002,3005.2,3004.6,2.40790018]
[1767315425305,2.27623473,3005.4,3004.7,2.44118137]
[1767315426201,2.27623473,3005.4,3004.7,2.40790018]
[1767315427284,2.27623473,3005.4,3004.7,2.44118137]
[1767315427483,2.27623473,3005.4,3004.8,2.40790018]
[1767315431403,2.27623473,3005.4,3004.8,2.44118026]
[1767315431705,2.27823473,3005.4,3004.8,2.44118026]
[1767315434175,0.002,3005.4,3004.8,2.40790018]
[1767315434797,0.002,3005.4,3004.9,2.40790018]
[1767315435005,0.002,3005.4,3005.1,2.40790018]
[1767315445625,2.47949992,3005.4,3004.9,2.45278132]
[1767315445923,2.47949992,3005.4,3004.7,3.0871669]
[1767315446224,2.47949992,3005.4,3004.8,2.45278132]
[1767315455611,2.47949992,3005.4,3004.8,2.45378132]
[1767315474361,2.47949992,3005.4,3004.8,2.972762]
[1767315476369,2.47949992,3005.4,3004.8,2.45378132]
[1767315485070,0.002,3005.4,3004.9,2.41219437]
[1767315488437,0.002,3005.4,3005.0,2.41219437]
[1767315497949,0.002,3005.5,3005.0,2.41219437]
[1767315501493,2.39997544,3005.5,3005.0,2.41219437]
[1767315505987,2.39997544,3005.5,3005.0,2.41319437]
[1767315507676,2.39997544,3005.5,3005.2,2.33350237]
[1767315507872,0.002,3005.5,3005.2,2.33350237]
[1767315508091,2.35741269,3005.5,3005.2,2.33350237]
[1767315510097,2.35741269,3005.5,3005.0,0.001]
[1767315510266,2.35741269,3005.5,3005.0,2.33450237]
[1767315511380,2.59135396,3005.4,3005.0,2.33450237]
[1767315512882,2.35541269,3005.4,3005.0,2.33450237]
[1767315514845,0.002,3005.5,3005.0,2.33450237]
[1767315515977,0.002,3005.6,3005.2,2.33350237]
[1767315520316,2.35541269,3005.5,3005.0,1.0000692]
[1767315520503,2.35541269,3005.5,3005.1,2.33350237]
[1767315528716,2.59115396,3005.5,3005.0,1.0000692]
[1767315528920,2.59115396,3005.5,3005.0,0.001]
[1767315529854,2.59115396,3005.5,3005.0,2.33450237]
[1767315530010,2.35541269,3005.5,3005.0,2.33450237]
[1767315531418,2.35741269,3005.5,3005.0,0.001]
[1767315532621,2.35741269,3005.5,3004.8,2.33450237]
[1767315540512,3.3289225,3005.8,3004.9,2.27318399]
[1767315540513,0.002,3005.8,3004.9,2.27318399]
[1767315540712,0.002,3006.0,3005.5,2.27318399]
[1767315541423,2.28286365,3006.1,3005.5,2.27318399]
[1767315541723,2.28286365,3006.1,3005.6,2.27318399]
[1767315541724,0.002,3006.1,3005.6,2.27318399]
[1767315542024,2.28086365,3006.3,3005.7,2.27318399]
[1767315547534,2.28286365,3006.3,3005.7,2.27318399]
[1767315547835,2.28286365,3006.3,3005.8,2.60039201]
[1767315551947,0.002,3006.4,3005.9,2.27318399]
[1767315552255,2.28286365,3006.4,3005.9,2.27318399]
[1767315555541,0.002,3006.7,3006.0,2.27318399]
[1767315555744,0.002,3006.7,3006.2,2.27318399]
[1767315560153,2.28286365,3006.8,3006.2,2.27318399]
[1767315560154,0.002,3006.8,3006.2,2.27318399]
[1767315561933,2.28286365,3006.8,3006.2,2.27318399]
[1767315562132,0.002,3006.7,3006.2,2.27318399]
[1767315563854,0.002,3006.8,3006.2,3.32645101]
[1767315564023,2.29565603,3007.0,3006.4,2.29009595]
[1767315569069,2.29565603,3006.9,3006.2,2.29009595]
[1767315570450,0.002,3007.0,3006.2,2.29009595]
[1767315570451,0.002,3007.0,3006.3,2.29009595]
[1767315570635,2.29765603,3007.0,3006.6,2.29009595]
[1767315571162,2.29565603,3007.2,3006.5,3.86829717]
[1767315571366,2.29565603,3007.5,3006.8,2.29009595]
[1767315572065,2.29565603,3007.5,3006.9,3.86829717]
[1767315572270,2.29565603,3007.5,3007.0,2.29009595]
[1767315577185,2.29765603,3007.5,3007.0,2.29009595]
[1767315592083,2.29765603,3007.5,3007.0,2.29109595]
[1767315594393,2.25639771,3007.4,3007.0,2.29109595]
[1767315595584,2.25839771,3007.5,3007.0,2.29109595]
[1767315600682,0.002,3007.5,3007.0,2.29109595]
[1767315600884,2.25839771,3007.5,3007.0,2.29109595]
[1767315601290,0.002,3007.7,3007.2,2.49371344]
[1767315601488,0.33735138,3007.9,3007.4,2.49371344]
[1767315602981,2.59374909,3007.9,3007.4,2.49371344]
[1767315607681,2.59574909,3007.9,3007.4,2.49371344]
[1767315613613,3.86851984,3008.3,3007.8,3.86651984]
[1767315613614,0.002,3008.3,3007.8,3.86651984]
[1767315613908,0.002,3008.3,3007.9,2.88036542]
[1767315614124,2.25839771,3008.3,3007.9,2.88036542]
[1767315614598,2.25839771,3008.3,3007.9,0.38665198]
[1767315614799,2.25839771,3008.3,3007.7,2.49371344]
[1767315620112,2.25639771,3008.2,3007.7,2.49371344]
[1767315621115,2.25639771,3008.2,3007.8,2.49371344]
[1767315628140,2.25839771,3008.2,3007.8,2.49371344]
[1767315629434,0.002,3008.3,3008.0,2.47162708]
[1767315629622,2.31308586,3008.8,3008.2,2.47162708]
[1767315629824,2.31308586,3008.8,3008.0,4.50365911]
[1767315629825,2.31308586,3008.8,3008.4,2.47162708]
[1767315631222,0.002,3008.8,3008.4,2.47162708]
[1767315631416,2.31108586,3009.1,3008.3,2.47162708]
[1767315633636,2.31108586,3009.0,3008.3,2.47162708]
[1767315633813,2.31108586,3008.8,3008.3,2.47162708]
[1767315634009,2.31108586,3008.8,3007.9,0.03324578]
[1767315634210,2.31108586,3008.8,3008.1,2.47162708]
[1767315637151,2.31308586,3008.8,3008.1,2.47162708]
[1767315642964,2.31308586,3008.8,3008.1,2.50487065]
[1767315642965,0.002,3008.8,3008.1,2.50487065]
[1767315643249,0.56343535,3008.9,3008.1,2.50487065]
[1767315643250,3.32329904,3009.1,3008.3,2.47162708]
[1767315643417,2.31108586,3009.0,3008.3,2.47162708]
[1767315645858,0.002,3008.8,3008.3,2.47162708]
[1767315649032,2.31308586,3008.8,3008.3,2.47162708]
[1767315653440,0.002,3008.8,3008.3,2.47162708]
[1767315654631,2.4049084,3009.0,3008.2,2.39528572]
[1767315656248,2.4049084,3009.0,3008.4,2.39528572]
[1767315656638,2.4049084,3009.0,3008.5,2.42852487]
[1767315659367,0.002,3009.2,3008.5,2.42852487]
[1767315659682,2.4069084,3009.2,3008.5,2.42852487]
[1767315659853,2.4049084,3009.1,3008.5,2.39528572]
[1767315662170,0.002,3009.2,3008.7,2.39528572]
[1767315663553,2.4069084,3009.2,3008.7,2.39528572]
[1767315663962,2.4069084,3009.2,3008.8,0.03323584]
[1767315664274,0.002,3009.2,3008.9,2.39528572]
[1767315664654,2.4069084,3009.2,3008.9,2.39528572]
[1767315665580,2.4069084,3009.2,3008.6,2.39528572]
[1767315665776,2.4069084,3009.2,3008.6,2.63481429]
[1767315665949,2.4069084,3009.2,3008.6,0.23952857]
[1767315667366,2.4069084,3009.2,3008.5,2.39528572]
[1767315668347,2.4069084,3009.2,3008.5,2.42852487]
[1767315668666,2.4069084,3009.2,3008.5,2.39528572]
[1767315668866,0.002,3009.5,3008.7,2.39528572]
[1767315669186,0.002,3009.5,3008.9,2.39528572]
[1767315670157,2.4069084,3009.5,3008.9,2.39528572]
[1767315670571,0.002,3009.2,3008.9,2.39528572]
[1767315671581,2.4069084,3009.2,3008.9,2.39528572]
[1767315674996,2.37367532,3009.2,3008.9,2.39528572]
[1767315676307,2.37367532,3009.2,3008.9,2.63481429]
[1767315676876,2.4049084,3009.4,3008.9,2.63481429]
[1767315678979,2.4049084,3009.4,3008.9,2.63581429]
[1767315679190,0.002,3009.2,3008.9,2.63581429]
[1767315681066,0.002,3009.5,3008.9,0.24052857]
[1767315681366,2.4069084,3009.5,3009.0,2.39528572]
[1767315682497,2.4069084,3009.5,3009.2,2.39528572]
[1767315682861,2.4069084,3009.5,3008.9,2.39628572]
[1767315683291,2.4049084,3009.4,3008.9,2.39628572]
[1767315687207,2.4069084,3009.4,3008.9,2.39628572]
[1767315689508,0.4569084,3009.4,3008.9,2.39628572]
[1767315690881,1.32329817,3009.3,3008.9,2.39628572]
[1767315694204,1.32329817,3009.3,3008.7,2.27630545]
[1767315694711,1.32329817,3009.3,3008.5,2.27730545]
[1767315694712,1.32229817,3008.9,3008.5,2.27730545]
[1767315696097,4.64735413,3009.3,3008.6,2.27630545]
[1767315696318,1.32229817,3009.1,3008.6,2.27630545]
[1767315697026,1.32229817,3009.1,3008.0,2.27730545]
[1767315697027,1.32129817,3008.8,3008.0,2.27730545]
[1767315697192,1.32129817,3008.8,3008.0,3.15030545]
[1767315697399,1.32129817,3008.8,3008.1,2.27630545]
[1767315698924,1.32129817,3008.7,3008.1,2.27630545]
[1767315699136,1.32129817,3008.5,3008.0,0.001]
[1767315699638,1.32129817,3008.5,3007.7,2.27630545]
[1767315699838,1.32029817,3008.3,3007.7,2.19748798]
[1767315701612,1.32029817,3008.3,3007.6,0.001]
[1767315702036,1.32029817,3008.3,3007.6,3.32589511]
[1767315702632,1.32029817,3008.3,3007.6,5.60220056]
[1767315703346,1.32029817,3008.3,3007.6,2.27730545]
[1767315704244,1.39911564,3008.2,3007.6,2.27730545]
[1767315704814,1.39911564,3008.2,3007.5,0.001]
[1767315705034,1.39811564,3008.1,3007.4,5.60241649]
[1767315705239,1.39811564,3008.1,3007.4,0.001]
[1767315705757,1.39611564,3007.7,3007.0,2.27730545]
[1767315705936,1.39511564,3007.5,3007.0,2.27730545]
[1767315709117,1.39511564,3007.5,3007.0,5.60287604]
[1767315709448,1.39511564,3007.5,3007.1,2.27630545]
[1767315713263,1.39511564,3007.5,3007.0,0.001]
[1767315714757,1.39511564,3007.5,3006.8,2.27730545]
[1767315714956,1.39411564,3007.4,3006.8,2.27730545]
[1767315715334,0.0798297,3006.4,3006.1,0.001]
[1767315715659,0.0798297,3006.4,3005.8,0.001]
[1767315715660,3.86252468,3006.4,3005.8,0.001]
[1767315715860,3.86252468,3006.0,3005.6,0.001]
[1767315716062,3.86252468,3006.0,3005.2,2.39841417]
[1767315716063,0.873,3005.9,3005.2,0.001]
[1767315716355,0.0798297,3005.9,3005.2,0.001]
[1767315716536,0.0798297,3005.7,3005.2,2.39841417]
[1767315717829,0.0798297,3005.9,3005.2,2.63845559]
[1767315718028,0.0798297,3006.1,3005.2,2.63845559]
[1767315718232,0.0798297,3006.0,3005.4,2.39741417]
[1767315719334,0.0798297,3006.1,3005.4,2.39741417]
[1767315722558,0.0798297,3006.1,3005.5,2.39741417]
[1767315723546,3.40641347,3006.1,3005.5,2.39741417]
[1767315723747,0.34064135,3006.0,3005.5,2.39741417]
[1767315724063,3.40641347,3006.1,3005.5,2.39741417]
[1767315724434,3.40641347,3006.1,3005.2,0.24104142]
[1767315724435,0.0798297,3005.9,3005.2,0.001]
[1767315724635,3.86252468,3005.6,3005.2,0.001]
[1767315724859,0.0798297,3005.7,3005.2,0.001]
[1767315725231,0.0798297,3005.7,3005.2,2.39841417]
[1767315726954,3.94235438,3005.7,3005.2,0.001]
[1767315727148,0.39423544,3005.6,3005.2,0.001]
[1767315727357,0.39423544,3005.6,3005.2,0.875]
[1767315727662,0.32009454,3005.6,3005.2,0.875]
[1767315727861,0.0798297,3006.0,3005.3,2.39741417]
[1767315728064,3.800446,3006.3,3005.4,3.86252468]
[1767315728272,0.0798297,3006.1,3005.5,2.39741417]
[1767315728642,0.0798297,3006.3,3005.5,2.39741417]
[1767315728838,0.0798297,3006.1,3005.5,2.39741417]
[1767315730348,0.8146763,3006.3,3005.5,2.39741417]
[1767315730543,0.0798297,3006.1,3005.5,2.39741417]
[1767315731666,0.0798297,3006.3,3005.5,2.39741417]
[1767315733875,0.0798297,3006.1,3005.3,0.03327454]
[1767315734056,0.0798297,3006.1,3005.5,2.39741417]
[1767315735777,0.0798297,3006.1,3005.5,2.39841417]
[1767315736883,3.40640148,3006.1,3005.5,2.39841417]
[1767315737563,0.0798297,3006.1,3005.5,2.39841417]
[1767315738678,0.81469764,3006.1,3005.6,3.27141417]
[1767315739080,0.0798297,3006.1,3005.6,3.27141417]
[1767315739282,0.0798297,3006.7,3005.7,3.86252468]
[1767315739484,6.4398297,3006.7,3005.8,2.39741417]
[1767315739852,9.76577867,3006.7,3005.8,2.39741417]
[1767315741575,0.0798297,3006.7,3005.8,2.39741417]
[1767315741782,0.0798297,3006.7,3006.0,2.39741417]
[1767315741961,0.0798297,3006.7,3006.1,3.27141417]
[1767315742558,3.40580878,3006.7,3006.2,0.874]
[1767315742982,3.40780878,3006.7,3006.2,0.874]
[1767315743160,4.46741713,3006.7,3006.2,0.874]
[1767315743356,3.86252468,3006.4,3005.6,2.39741417]
[1767315743658,3.86252468,3006.4,3005.5,0.001]
[1767315743659,3.86252468,3006.4,3005.8,2.26058254]
[1767315743957,0.0798297,3006.5,3005.8,2.26058254]
[1767315744390,0.0798297,3006.5,3005.9,0.874]
[1767315744573,0.39423544,3006.4,3005.9,0.874]
[1767315744976,0.0798297,3006.5,3005.9,3.24100706]
[1767315746495,1.14143805,3006.7,3006.0,2.36700706]
[1767315746496,4.46736525,3006.7,3006.0,2.36700706]
[1767315746706,0.002,3006.7,3006.2,2.36700706]
[1767315746999,0.002,3006.7,3006.2,1.60904586]
[1767315750101,0.002,3006.7,3006.3,2.36700706]
[1767315750388,0.7579612,3007.0,3006.4,3.86252468]
[1767315750590,0.87293869,3006.5,3006.1,0.874]
[1767315750793,3.86795062,3006.6,3005.2,3.811]
[1767315750794,0.87293869,3006.3,3005.9,2.36574194]
[1767315751499,0.87293869,3006.3,3005.9,3.23974194]
[1767315752565,0.87293869,3006.3,3005.9,0.874]
[1767315755396,3.32637939,3006.3,3005.6,2.36700706]
[1767315755574,3.32637939,3006.3,3005.7,0.874]
[1767315755777,0.38004683,3006.2,3005.7,0.874]
[1767315756579,0.38004683,3006.2,3005.7,3.24100706]
[1767315756782,0.38004683,3006.2,3005.8,2.36700706]
[1767315761414,0.38004683,3006.2,3005.2,0.001]
[1767315761415,3.86795062,3006.0,3005.3,2.36700706]
[1767315761620,0.0798297,3006.3,3005.3,3.24100706]
[1767315763604,10.52086792,3006.2,3005.3,2.36700706]
[1767315765004,0.0798297,3006.1,3005.3,2.36700706]
[1767315765202,1.06006976,3006.0,3005.3,2.36700706]
[1767315766799,3.32679064,3005.9,3005.3,2.36800706]
[1767315767624,1.06006976,3006.0,3005.3,2.36800706]
[1767315767819,3.32649203,3006.2,3005.3,2.4012816]
[1767315768020,3.99176724,3006.2,3005.3,2.4012816]
[1767315768422,3.32626713,3006.4,3005.3,2.4012816]
[1767315769126,6.65207114,3006.6,3005.3,2.4012816]
[1767315769790,6.65207114,3006.6,3005.3,2.36800706]
[1767315770017,0.0798297,3006.5,3005.3,2.36800706]
[1767315771122,3.32623736,3006.4,3005.3,2.36800706]
[1767315771423,0.67323024,3006.3,3005.4,2.36700706]
[1767315771810,0.67323024,3006.3,3005.5,0.874]
[1767315772002,0.67323024,3006.3,3005.6,2.36700706]
[1767315773102,3.99961508,3006.3,3005.6,2.36700706]
[1767315773438,0.002,3006.7,3005.9,2.36700706]
[1767315773636,0.002,3006.7,3006.1,2.3609545]
[1767315774533,0.002,3006.7,3006.0,1.49749577]
[1767315774712,3.99901601,3007.0,3006.1,2.3609545]
[1767315775038,0.67343405,3007.0,3006.1,2.3609545]
[1767315775237,0.67343405,3007.0,3006.2,2.74679953]
[1767315775829,0.67743405,3007.2,3006.2,2.74679953]
[1767315777535,0.67743405,3007.0,3006.2,2.74679953]